bitfinex-derivatives/quotes_ETHF0:USTF0_20240930
["timestamp","ask_amount","ask_price","bid_price","bid_amount"]
[1727723658594,0.4021,2586.8,2586.6,0.38669]
[1727723658802,0.4021,2586.8,2586.7,0.38668]
[1727723659099,6.6987,2586.9,2586.4,0.96682]
[1727723659397,0.7709,2586.9,2586.8,0.38667]
[1727723659599,0.7709,2586.9,2586.5,0.96679]
[1727723659600,0.7709,2586.9,2586.5,0.3954]
[1727723659794,0.7709,2586.9,2586.7,0.38668]
[1727723659795,1.15756,2586.9,2586.7,0.38668]
[1727723659990,3.87756,2586.9,2586.7,0.38668]
[1727723661094,3.87756,2586.9,2586.3,1.36227]
[1727723661095,3.4909,2586.9,2586.3,1.36227]
[1727723661300,0.38668,2586.8,2586.3,1.36227]
[1727723661603,3.4909,2586.9,2586.3,0.3954]
[1727723661804,3.59449,2586.7,2586.4,0.38672]
[1727723662296,3.2078,2586.7,2586.3,0.3954]
[1727723662493,0.3881,2586.6,2586.5,0.38671]
[1727723662698,1.3535,2586.5,2585.9,0.38679]
[1727723662895,0.38679,2586.0,2585.7,0.38683]
[1727723663093,5.9278,2586.1,2585.7,0.38683]
[1727723663094,0.3701,2585.9,2585.7,0.38683]
[1727723663391,0.3701,2585.9,2585.8,0.38682]
[1727723664202,0.3701,2585.9,2585.6,0.7874]
[1727723664398,0.3701,2585.9,2585.8,0.38682]
[1727723665002,3.0901,2585.9,2585.6,0.3895]
[1727723665299,3.47691,2585.9,2585.6,0.77635]
[1727723665490,0.38683,2585.8,2585.6,0.3895]
[1727723665695,3.47691,2585.9,2585.6,0.3895]
[1727723665899,3.2078,2585.7,2585.6,0.77634]
[1727723666100,3.2078,2585.7,2585.6,0.3895]
[1727723667491,3.2078,2585.7,2585.5,0.38686]
[1727723667695,3.2078,2585.7,2585.4,0.38688]
[1727723667890,3.2078,2585.7,2585.5,0.38685]
[1727723668103,3.2078,2585.7,2585.6,0.38685]
[1727723668604,3.2078,2585.7,2585.5,0.38686]
[1727723669404,5.9278,2585.7,2585.5,0.38686]
[1727723670599,5.9278,2585.7,2585.3,0.7958]
[1727723670803,5.9278,2585.7,2585.5,0.38686]
[1727723672302,5.9278,2585.7,2585.3,0.7958]
[1727723672508,5.9278,2585.7,2585.4,0.38687]
[1727723673211,2.72,2585.5,2585.3,0.4008]
[1727723673397,2.72,2585.5,2585.3,0.78769]
[1727723673601,0.3904,2585.4,2585.3,0.4008]
[1727723673801,0.3904,2585.4,2585.3,0.78769]
[1727723674000,0.3904,2585.4,2585.3,0.38689]
[1727723674810,5.9278,2585.7,2585.4,0.38687]
[1727723675100,6.3065,2585.7,2585.5,0.38686]
[1727723675305,6.3065,2585.7,2585.6,0.77935]
[1727723675908,6.3065,2585.7,2585.6,0.3925]
[1727723676208,6.3065,2585.7,2585.6,0.77935]
[1727723676701,5.9278,2585.7,2585.6,0.77935]
[1727723676901,3.2078,2585.7,2585.6,0.77935]
[1727723681605,4.4578,2585.7,2585.6,0.77935]
[1727723683014,4.4578,2585.7,2585.6,0.3925]
[1727723683219,4.4578,2585.7,2585.6,0.77935]
[1727723686514,4.4578,2585.7,2585.6,0.3925]
[1727723686710,4.4578,2585.7,2585.6,0.77935]
[1727723687015,4.84463,2585.7,2585.6,0.3925]
[1727723687216,4.4578,2585.7,2585.6,0.77935]
[1727723687412,4.4578,2585.7,2585.6,0.3925]
[1727723687630,4.84463,2585.7,2585.6,0.3925]
[1727723688025,4.4578,2585.7,2585.4,0.402]
[1727723688223,1.25,2585.5,2585.4,1.17417]
[1727723690022,1.63686,2585.5,2585.4,0.7873]
[1727723690225,1.25,2585.5,2585.4,0.7873]
[1727723690526,1.25,2585.5,2585.4,1.17418]
[1727723690929,1.25,2585.5,2585.4,0.7873]
[1727723692332,1.63686,2585.5,2585.4,0.7873]
[1727723692531,0.38688,2585.4,2585.1,0.38692]
[1727723692727,1.25,2585.3,2585.1,0.38692]
[1727723692934,1.25,2585.3,2585.2,0.38691]
[1727723694027,1.25,2585.5,2585.3,0.38689]
[1727723694223,1.25,2585.5,2585.4,1.16758]
[1727723694736,1.25,2585.5,2585.4,0.7807]
[1727723694941,1.25,2585.5,2585.4,1.16758]
[1727723696033,1.25,2585.5,2585.4,0.7807]
[1727723696229,1.25,2585.5,2585.4,1.16758]
[1727723697035,1.25,2585.5,2585.4,0.7807]
[1727723697843,1.25,2585.5,2585.4,1.16758]
[1727723698142,0.3776,2585.6,2585.4,0.7807]
[1727723698143,1.6276,2585.6,2585.4,0.7807]
[1727723698337,1.6276,2585.6,2585.5,0.38686]
[1727723698835,1.6276,2585.6,2585.4,1.16756]
[1727723699043,1.6276,2585.6,2585.5,0.38686]
[1727723699540,1.6276,2585.6,2585.4,1.16757]
[1727723699733,1.6276,2585.6,2585.5,0.38686]
[1727723700342,1.6276,2585.6,2585.4,0.7807]
[1727723700538,1.63686,2585.5,2585.4,0.3824]
[1727723701333,1.25,2585.5,2585.4,0.76928]
[1727723701636,1.01100255,2585.6,2585.5,0.38686]
[1727723701837,1.01100255,2585.6,2585.5,0.78176]
[1727723702037,4.72366263,2585.7,2585.6,0.38685]
[1727723702038,4.21880255,2585.7,2585.6,0.38685]
[1727723702244,3.2078,2585.7,2585.6,0.38685]
[1727723702452,3.2078,2585.7,2585.6,0.77275]
[1727723702740,4.21985491,2585.7,2585.6,0.77275]
[1727723703335,4.22000316,2585.7,2585.6,0.77275]
[1727723706345,4.72366263,2585.7,2585.6,0.77275]
[1727723706738,3.2078,2585.7,2585.6,0.77275]
[1727723707140,4.22099168,2585.7,2585.6,0.77275]
[1727723707549,4.22149341,2585.7,2585.6,0.77275]
[1727723707752,4.22149341,2585.7,2585.6,4.63995]
[1727723707940,4.22149341,2585.7,2585.6,0.77275]
[1727723708346,4.72366263,2585.7,2585.6,0.77275]
[1727723709343,4.72366263,2585.7,2585.6,1.7849583]
[1727723710836,1.51586263,2585.7,2585.6,1.7849583]
[1727723711949,1.5220916,2585.7,2585.6,1.7849583]
[1727723713251,2.02795715,2585.8,2585.6,1.3981083]
[1727723713449,1.52214925,2585.7,2585.6,1.7849583]
[1727723714053,2.02795715,2585.8,2585.7,0.38683]
[1727723714553,2.41477715,2585.8,2585.7,0.38683]
[1727723714753,2.02795715,2585.8,2585.7,0.38683]
[1727723715254,2.41477715,2585.8,2585.7,0.38683]
[1727723715746,2.02795715,2585.8,2585.7,0.38683]
[1727723717248,2.41477715,2585.8,2585.7,0.38683]
[1727723720653,0.38683,2585.7,2585.6,0.77273]
[1727723720854,1.63683,2585.7,2585.6,0.77273]
[1727723721055,6.48575715,2585.7,2585.5,1.0122083]
[1727723721253,0.38685,2585.6,2585.5,1.0122083]
[1727723721452,2.52886071,2585.6,2585.3,0.38688]
[1727723721757,1.63688,2585.4,2585.3,0.38688]
[1727723721954,1.63688,2585.4,2585.2,1.0122083]
[1727723721955,1.25,2585.4,2585.2,1.0122083]
[1727723722160,1.90910577,2585.3,2585.2,1.0122083]
[1727723722365,1.25,2585.4,2585.1,1.7867283]
[1727723722366,0.38691,2585.2,2585.1,1.7867283]
[1727723722558,2.77221517,2585.2,2585.1,1.7867283]
[1727723723155,3.15912517,2585.2,2585.1,1.3998083]
[1727723723347,3.15912517,2585.2,2585.1,0.3876]
[1727723723348,1.63691,2585.2,2585.1,0.3876]
[1727723725255,3.15858619,2585.2,2585.1,0.3876]
[1727723726453,2.77167619,2585.2,2585.0,1.0122083]
[1727723726655,1.91470952,2585.1,2585.0,0.38694]
[1727723727763,0.38694,2585.0,2584.8,0.3795]
[1727723727966,1.52141353,2584.9,2584.8,0.76646]
[1727723728854,3.15801353,2585.0,2584.9,0.38695]
[1727723729166,1.90801353,2585.0,2584.9,0.38695]
[1727723730560,1.52141353,2585.0,2584.9,0.38695]
[1727723730755,5.12241353,2585.1,2585.0,0.38694]
[1727723730951,4.72921353,2585.1,2585.0,0.38694]
[1727723731151,1.52141353,2585.1,2585.0,1.13494]
[1727723731365,1.01342463,2585.1,2585.0,1.13494]
[1727723733358,1.01333012,2585.2,2585.0,13.8238]
[1727723733560,1.52141353,2585.4,2585.3,0.38689]
[1727723733561,1.01333012,2585.4,2585.3,0.38689]
[1727723733764,1.01333012,2585.7,2585.3,4.21720633]
[1727723733954,1.01333012,2585.7,2585.6,1.63685]
[1727723734661,1.01333012,2585.8,2585.6,1.25]
[1727723734851,1.01333012,2585.8,2585.7,0.38683]
[1727723736383,4.72921353,2586.0,2585.7,3.8672]
[1727723736384,1.01333012,2586.0,2585.7,3.8672]
[1727723736572,1.01333012,2586.0,2585.8,1.6271]
[1727723736869,1.01333012,2586.0,2585.9,0.3868]
[1727723737069,1.01333012,2586.0,2585.9,0.7633]
[1727723737257,1.01333012,2586.1,2585.9,0.3765]
[1727723737458,1.01333012,2586.1,2586.0,0.38679]
[1727723737659,1.01333012,2586.1,2585.9,0.76329]
[1727723737860,1.01333012,2586.1,2586.0,0.38679]
[1727723738067,2.65011012,2586.1,2585.9,0.7633]
[1727723738259,3.78413838,2586.1,2585.9,0.7633]
[1727723738458,2.26272485,2586.1,2585.9,0.3765]
[1727723738868,2.26272485,2586.1,2585.9,0.76329]
[1727723739164,2.64950485,2586.1,2585.9,0.7633]
[1727723739467,1.01272485,2586.1,2586.0,0.38679]
[1727723742366,1.41462485,2586.2,2586.1,0.38677]
[1727723742561,1.41462485,2586.2,2585.9,0.3765]
[1727723742867,1.39950485,2586.1,2586.0,0.38679]
[1727723743165,1.01272485,2586.1,2586.0,0.38679]
[1727723743671,1.39949485,2586.1,2586.0,0.38679]
[1727723743879,1.01272485,2586.1,2586.0,0.38679]
[1727723744370,1.80139485,2586.2,2586.0,0.38679]
[1727723744571,1.80139485,2586.2,2585.9,0.3765]
[1727723744772,1.80139485,2586.2,2586.0,0.38678]
[1727723745166,1.41462485,2586.2,2586.0,0.38678]
[1727723745363,0.38679,2586.0,2585.9,0.7633]
[1727723745568,1.39950485,2586.1,2586.0,0.38679]
[1727723745768,1.01272485,2586.1,2586.0,0.38679]
[1727723746373,1.80139485,2586.2,2585.9,0.3765]
[1727723746675,1.80138485,2586.2,2586.1,0.38677]
[1727723746980,0.78866,2586.2,2586.1,0.38677]
[1727723747170,1.80059967,2586.2,2586.1,0.38677]
[1727723748081,1.80060967,2586.2,2586.1,0.38677]
[1727723748273,0.78867,2586.2,2586.1,0.38677]
[1727723748581,9.01790907,2586.2,2585.8,0.3771]
[1727723748790,1.5178581,2585.9,2585.8,0.76392]
[1727723749075,1.5178581,2585.9,2585.8,0.3771]
[1727723749282,1.01190545,2585.9,2585.8,0.76392]
[1727723749479,1.5178581,2586.0,2585.8,0.3771]
[1727723749673,1.5178581,2586.0,2585.9,0.3868]
[1727723750378,1.51771696,2586.0,2585.8,1.34415]
[1727723750584,1.01181025,2585.9,2585.8,0.76392]
[1727723751083,1.01181025,2586.0,2585.9,0.3868]
[1727723755481,1.01181025,2586.1,2586.0,0.38679]
[1727723756883,1.39858025,2586.1,2586.0,0.38679]
[1727723757686,0.3868,2586.0,2585.9,0.38679]
[1727723757895,1.01181025,2586.1,2585.8,0.3771]
[1727723758189,1.39860025,2586.1,2586.0,0.38679]
[1727723759194,1.39858025,2586.1,2586.0,0.38679]
[1727723760200,2.30638696,2586.2,2586.1,0.38677]
[1727723760691,2.30638696,2586.2,2585.8,1.34415]
[1727723760692,0.38679,2586.1,2586.0,0.38678]
[1727723760889,0.3868,2585.9,2585.8,0.76391]
[1727723761088,1.39846022,2586.0,2585.9,0.38679]
[1727723761986,8.08666022,2586.0,2585.5,0.96714]
[1727723762187,4.52018444,2585.9,2585.4,1.3399]
[1727723762386,0.38683,2585.8,2585.7,0.38683]
[1727723762692,0.368,2585.8,2585.7,0.38683]
[1727723763293,1.01168444,2585.8,2585.7,6.97403]
[1727723763489,1.51771696,2586.0,2585.8,0.38682]
[1727723763490,1.01168444,2585.9,2585.8,0.38682]
[1727723763691,1.01168444,2585.9,2585.8,0.76732]
[1727723764094,1.51771696,2586.1,2585.8,0.3805]
[1727723764295,1.01156496,2585.9,2585.8,0.76732]
[1727723764795,1.01155493,2585.9,2585.8,0.76732]
[1727723764996,1.01155493,2586.0,2585.8,0.76732]
[1727723765303,1.51771696,2586.1,2586.0,0.38679]
[1727723767802,1.51771696,2586.1,2586.0,1.63679]
[1727723767996,1.01147107,2586.1,2586.0,5.50399]
[1727723768194,1.01147107,2586.2,2586.1,0.38677]
[1727723768398,1.01147107,2586.2,2586.1,4.65187]
[1727723768701,1.51771696,2586.8,2586.3,0.96686]
[1727723768895,1.51771696,2586.9,2586.8,0.38667]
[1727723769290,1.51771696,2586.9,2586.8,0.76337]
[1727723769695,5.49166696,2587.0,2586.8,0.3767]
[1727723769896,5.49166696,2587.0,2586.9,0.38665]
[1727723770401,3.97395,2587.0,2586.9,0.38665]
[1727723770698,3.97395,2587.0,2586.8,0.76336]
[1727723770908,3.97395,2587.0,2586.9,0.38665]
[1727723771105,3.5873,2587.0,2586.9,0.38665]
[1727723771302,3.97394,2587.0,2586.9,0.38665]
[1727723771703,3.97394,2587.0,2586.8,0.76335]
[1727723772007,3.97394,2587.0,2586.9,0.38665]
[1727723772211,3.5873,2587.0,2586.9,0.38665]
[1727723772393,3.5873,2587.0,2586.8,0.3767]
[1727723772599,3.2078,2587.0,2586.8,0.3767]
[1727723772907,3.2078,2587.0,2586.9,0.38665]
[1727723774213,3.59444,2587.0,2586.9,0.38665]
[1727723774506,0.38668,2586.8,2586.7,0.38668]
[1727723774902,4.17442,2587.0,2586.5,0.3826]
[1727723775099,0.76519,2586.7,2586.6,0.38669]
[1727723775802,0.76519,2586.7,2586.5,0.3826]
[1727723776114,0.76519,2586.7,2586.6,0.3867]
[1727723777219,0.3785,2586.7,2586.6,0.3867]
[1727723778303,0.76518,2586.7,2586.6,0.3867]
[1727723778507,0.3785,2586.7,2586.6,0.3867]
[1727723780309,0.76518,2586.7,2586.6,0.3867]
[1727723780508,0.3785,2586.7,2586.6,0.3867]
[1727723781118,0.3785,2586.7,2586.5,0.7693]
[1727723781434,0.3746,2586.6,2586.5,0.3826]
[1727723781630,0.38672,2586.5,2586.4,0.38673]
[1727723781933,0.38672,2586.5,2586.3,0.38673]
[1727723782135,0.38672,2586.5,2586.4,0.38673]
[1727723782824,0.7613,2586.6,2586.2,0.3785]
[1727723783127,0.3746,2586.6,2586.5,0.38671]
[1727723783425,0.3746,2586.6,2586.2,0.3785]
[1727723783633,0.7613,2586.6,2586.5,0.38671]
[1727723784329,1.89231696,2586.6,2586.5,0.38671]
[1727723784527,0.3746,2586.6,2586.5,0.38671]
[1727723784827,0.7613,2586.6,2586.5,0.38671]
[1727723785525,2.79090907,2586.6,2586.5,0.38671]
[1727723785925,0.7613,2586.6,2586.5,0.38671]
[1727723786124,0.3746,2586.6,2586.5,0.38671]
[1727723786624,0.3746,2586.6,2586.2,4.06539]
[1727723786625,5.61590907,2586.7,2586.4,2.72]
[1727723786824,1.5169526,2586.6,2586.5,0.38671]
[1727723787032,1.5169526,2586.6,2586.5,0.76191]
[1727723787526,2.02960907,2586.8,2586.6,0.3867]
[1727723787527,1.5169526,2586.7,2586.6,0.3867]
[1727723787727,1.5169526,2586.7,2586.6,0.7596]
[1727723787924,1.5169526,2586.7,2586.6,8.466]
[1727723788124,1.5169526,2586.9,2586.8,0.38667]
[1727723789936,1.9043526,2587.0,2586.9,0.38665]
[1727723790133,1.9037608,2587.0,2586.9,0.38665]
[1727723790436,1.5163608,2587.0,2586.9,0.38665]
[1727723791837,1.8886608,2587.2,2586.9,3.8656]
[1727723792136,2.40080907,2587.3,2587.0,3.104]
[1727723792137,1.8875608,2587.3,2587.0,3.104]
[1727723792330,2.2741508,2587.3,2587.2,0.38661]
[1727723792530,1.8875608,2587.3,2587.2,0.38661]
[1727723793139,2.2741508,2587.3,2587.2,0.38661]
[1727723793533,0.75779,2587.3,2587.2,0.38661]
[1727723793731,2.8626908,2587.5,2587.4,0.38658]
[1727723793732,1.8962608,2587.5,2587.4,0.38658]
[1727723793929,0.78995,2587.6,2587.5,0.38657]
[1727723795532,0.78995,2587.6,2587.2,4.80652]
[1727723795533,0.38659,2587.3,2587.2,1.5066]
[1727723795741,3.59439,2587.3,2587.2,1.5066]
[1727723796540,3.59439,2587.3,2587.2,1.50661]
[1727723797041,3.59439,2587.3,2587.2,1.12]
[1727723797637,3.59439,2587.3,2587.2,0.38661]
[1727723798029,3.2078,2587.3,2587.0,2.72]
[1727723798336,0.3908,2587.2,2587.1,0.38662]
[1727723799334,0.7706,2587.2,2587.1,0.38662]
[1727723799532,1.1766,2587.2,2587.1,0.38662]
[1727723800531,2.6929608,2587.2,2587.1,0.38662]
[1727723800935,1.5163608,2587.2,2587.1,0.38662]
[1727723801244,1.5163608,2587.3,2587.2,0.38661]
[1727723802233,1.5163608,2587.3,2587.1,0.38662]
[1727723802543,2.41617907,2587.5,2587.3,0.38659]
[1727723802544,1.5163608,2587.4,2587.3,0.38659]
[1727723802737,2.02960907,2587.5,2587.4,0.38658]
[1727723802934,2.02960907,2587.5,2587.0,3.68659]
[1727723803243,2.406071,2587.4,2587.0,3.68659]
[1727723803429,1.90129351,2587.1,2587.0,0.38663]
[1727723803634,1.51466351,2587.1,2587.0,0.38663]
[1727723803837,2.67396351,2587.1,2587.0,0.38663]
[1727723804244,1.1593,2587.1,2587.0,0.38663]
[1727723804442,1.5149335,2587.1,2587.0,3.10663]
[1727723805338,1.5149335,2587.1,2587.0,3.51253]
[1727723806838,1.5149335,2587.2,2587.1,0.38662]
[1727723807048,2.019481,2587.3,2587.2,0.38661]
[1727723808442,2.52886071,2587.4,2587.3,0.38659]
[1727723808443,2.91545071,2587.4,2587.3,0.38659]
[1727723808639,0.38659,2587.4,2587.3,0.38659]
[1727723809044,2.67505757,2587.5,2587.4,0.38658]
[1727723809045,3.06163757,2587.5,2587.4,0.38658]
[1727723809444,6.92643757,2587.5,2587.4,0.38658]
[1727723810539,5.41068,2587.5,2587.4,0.38658]
[1727723810935,1.54588,2587.5,2587.4,0.38658]
[1727723811139,5.41068,2587.5,2587.4,0.38658]
[1727723812140,7.43169009,2587.5,2587.4,0.38658]
[1727723813048,3.18031009,2587.5,2587.4,0.38658]
[1727723813246,2.02101009,2587.6,2587.3,3.1004]
[1727723813440,2.02101009,2587.6,2587.5,0.38657]
[1727723813644,6.01325009,2587.7,2587.4,0.3683]
[1727723813848,6.01325009,2587.7,2587.6,0.38655]
[1727723814248,5.22881009,2587.7,2587.6,0.38655]
[1727723814548,2.02101009,2587.8,2587.7,0.38654]
[1727723814851,2.02101009,2587.9,2587.7,6.9834]
[1727723815051,1.51789074,2587.9,2587.8,0.38652]
[1727723815248,1.51789074,2588.0,2587.8,0.3885]
[1727723815444,4.72569074,2588.1,2588.0,0.38649]
[1727723815639,6.23846388,2588.1,2588.0,0.38649]
[1727723815853,3.03066388,2588.2,2588.1,0.38648]
[1727723816150,3.03066388,2588.3,2588.2,0.38646]
[1727723816646,3.41711388,2588.3,2588.2,0.38646]
[1727723817043,3.03066388,2588.3,2588.2,0.38646]
[1727723817247,6.99460388,2588.4,2588.3,0.38645]
[1727723817549,6.60816388,2588.4,2588.3,0.38645]
[1727723817748,3.03066388,2588.5,2588.4,0.38643]
[1727723817948,4.31977453,2588.6,2588.3,2.72]
[1727723817949,0.784,2588.6,2588.5,0.38642]
[1727723818552,7.33531841,2588.8,2588.6,0.38639]
[1727723818755,3.41704388,2588.8,2588.7,0.38639]
[1727723819049,3.03066388,2588.8,2588.7,0.38639]
[1727723819264,3.78076388,2588.9,2588.3,0.3892]
[1727723819448,1.13646,2588.9,2588.8,0.38637]
[1727723819643,0.7501,2588.9,2588.7,2.72]
[1727723819849,0.38637,2588.8,2588.7,0.38638]
[1727723820357,0.7501,2588.9,2588.6,3.10639]
[1727723820358,0.38639,2588.7,2588.6,3.10639]
[1727723820654,2.52345648,2588.7,2588.6,3.10639]
[1727723821750,2.90983648,2588.8,2588.7,0.38639]
[1727723823551,0.38638,2588.8,2588.7,0.38638]
[1727723828761,0.38639,2588.8,2588.7,0.38638]
[1727723830168,1.13647,2588.9,2588.8,0.38637]
[1727723830962,0.7501,2588.9,2588.8,0.38637]
[1727723831162,1.13646,2588.9,2588.8,0.38637]
[1727723831858,3.59415,2589.0,2588.8,3.10637]
[1727723832059,3.2078,2589.0,2588.9,0.38636]
[1727723832259,3.2078,2589.0,2588.9,3.48056]
[1727723832662,3.2078,2589.0,2588.9,7.34296]
[1727723835063,3.2078,2589.0,2588.9,3.48056]
[1727723835567,3.2078,2589.3,2589.0,0.96586]
[1727723835766,3.2078,2589.3,2589.2,3.10631]
[1727723835971,0.38628,2589.4,2589.3,0.38628]
[1727723836168,0.7998,2589.6,2589.3,0.78138]
[1727723836368,0.7998,2589.6,2589.3,0.3951]
[1727723836568,0.7998,2589.6,2589.5,0.38627]
[1727723836763,3.98744,2589.7,2589.6,0.38625]
[1727723837368,3.6012,2589.7,2589.6,0.38625]
[1727723837569,1.16813,2589.8,2589.7,0.38624]
[1727723837770,2.68015198,2589.8,2589.7,3.10624]
[1727723838167,2.29392198,2589.8,2589.7,3.10624]
[1727723838371,0.7819,2589.8,2589.7,3.10624]
[1727723838570,1.16812,2589.8,2589.7,3.10624]
[1727723838772,1.89824198,2589.9,2589.7,2.72]
[1727723839070,4.71982198,2590.0,2589.7,2.72]
[1727723839273,1.89823198,2589.9,2589.8,0.76422]
[1727723839473,0.38622,2589.8,2589.7,2.72]
[1727723840971,0.38622,2589.8,2589.7,3.10624]
[1727723841174,0.38622,2589.8,2589.7,0.38624]
[1727723841369,5.68533198,2590.0,2589.5,2.72]
[1727723841669,0.38628,2589.4,2589.3,0.38628]
[1727723842271,3.2078,2589.4,2589.1,2.72]
[1727723842467,0.3693,2589.3,2589.1,1.086]
[1727723842771,0.38631,2589.2,2589.1,1.47232]
[1727723843072,0.3693,2589.3,2588.9,2.72]
[1727723843280,1.33506,2589.3,2588.9,3.806]
[1727723843471,0.38634,2589.1,2589.0,0.38634]
[1727723844375,0.38632,2589.2,2589.1,0.38633]
[1727723846176,0.7556,2589.3,2589.2,0.38631]
[1727723846681,4.618,2589.3,2589.2,0.38631]
[1727723847673,0.3693,2589.3,2589.2,0.76231]
[1727723847867,0.3693,2589.3,2589.2,0.38631]
[1727723848079,0.3693,2589.3,2588.8,0.38636]
[1727723848080,0.38637,2588.9,2588.8,0.38636]
[1727723848377,0.38637,2588.9,2588.4,0.38643]
[1727723848378,0.38643,2588.5,2588.4,0.38643]
[1727723848770,4.17379,2588.7,2588.2,0.3802]
[1727723848771,0.96602,2588.6,2588.2,0.3802]
[1727723848977,0.38643,2588.4,2588.3,0.38645]
[1727723849679,0.96602,2588.6,2588.2,0.3802]
[1727723849878,0.38644,2588.4,2588.3,0.38643]
[1727723850275,3.59424,2588.4,2588.3,0.38643]
[1727723850576,0.38644,2588.4,2588.3,0.38643]
[1727723851277,0.96602,2588.6,2588.2,0.3802]
[1727723851472,0.38643,2588.5,2588.4,0.38642]
[1727723852574,0.38641,2588.6,2588.5,0.38641]
[1727723854589,3.2078,2588.7,2588.6,0.3864]
[1727723854783,3.2078,2588.7,2588.6,0.7836]
[1727723854979,3.2078,2588.7,2588.6,1.1532]
[1727723856383,3.2078,2589.0,2588.6,0.7668]
[1727723856575,3.59416,2589.0,2588.9,0.38635]
[1727723857377,3.59414,2589.0,2588.9,0.38635]
[1727723857887,3.2078,2589.0,2588.9,0.38635]
[1727723858185,3.59414,2589.0,2588.9,0.38635]
[1727723858981,0.38634,2589.0,2588.9,0.38635]
[1727723859376,0.7927,2589.1,2588.7,2.72]
[1727723859586,0.7927,2589.1,2589.0,0.38634]
[1727723859587,1.17904,2589.1,2589.0,0.38634]
[1727723860088,1.17904,2589.1,2588.9,2.72]
[1727723860281,1.17904,2589.1,2589.0,0.38634]
[1727723862087,0.4067,2589.1,2589.0,0.38634]
[1727723862387,0.38632,2589.2,2589.1,0.38631]
[1727723863480,4.71982198,2589.3,2589.2,0.38631]
[1727723863481,5.10613198,2589.3,2589.2,0.38631]
[1727723864487,0.38631,2589.2,2589.1,3.49232]
[1727723865985,4.71982198,2589.3,2589.0,0.3791]
[1727723866285,0.38637,2588.8,2588.7,0.386]
[1727723868197,0.38637,2588.8,2588.7,0.77239]
[1727723870491,0.3788,2588.9,2588.7,0.386]
[1727723870796,0.76516,2588.9,2588.8,0.38637]
[1727723872087,0.3788,2588.9,2588.8,0.38637]
[1727723872690,0.76516,2588.9,2588.8,0.38637]
[1727723875795,0.3698,2589.0,2588.9,0.38636]
[1727723876092,0.79083,2589.1,2589.0,0.38634]
[1727723876487,0.79083,2589.1,2589.0,0.77074]
[1727723876983,0.79083,2589.1,2589.0,0.3844]
[1727723876984,2.30285198,2589.1,2589.0,0.3844]
[1727723877184,2.30285198,2589.1,2589.0,0.77074]
[1727723878094,0.79083,2589.1,2589.0,0.3844]
[1727723878392,0.79083,2589.1,2589.0,0.77074]
[1727723878988,2.30285198,2589.1,2589.0,0.77074]
[1727723879289,0.79083,2589.1,2589.0,0.77074]
[1727723880490,0.79083,2589.1,2589.0,0.3844]
[1727723880690,2.30285198,2589.1,2589.0,0.77074]
[1727723881794,2.30285198,2589.1,2589.0,0.38634]
[1727723883295,0.38636,2589.0,2588.9,0.38634]
[1727723883595,0.38636,2589.0,2588.7,3.106]
[1727723883792,3.59417,2588.9,2588.8,0.38637]
[1727723884001,3.2078,2588.9,2588.8,0.38637]
[1727723884190,1.89837198,2589.0,2588.9,0.38636]
[1727723885090,0.4045,2589.1,2588.8,2.72]
[1727723885091,1.91652198,2589.1,2589.0,0.38634]
[1727723885290,1.91652198,2589.1,2589.0,3.10634]
[1727723885291,0.4045,2589.1,2589.0,3.10634]
[1727723886193,4.72455709,2589.2,2589.1,0.38633]
[1727723886393,4.72455709,2589.2,2589.1,0.78303]
[1727723886590,1.51675709,2589.3,2589.1,4.6604]
[1727723886796,1.51675709,2589.3,2589.2,7.34201]
[1727723886994,1.51675709,2589.3,2589.2,3.47961]
[1727723887199,1.51675709,2589.3,2589.2,7.34201]
[1727723887800,1.51675709,2589.3,2589.2,3.47961]
[1727723887801,1.90305709,2589.3,2589.2,3.47961]
[1727723888000,2.40231931,2589.4,2589.2,3.0933]
[1727723888605,2.40231931,2589.4,2589.3,0.3863]
[1727723890214,0.3863,2589.3,2589.2,3.4796]
[1727723890816,2.40231931,2589.4,2589.3,0.3863]
[1727723891116,0.38629,2589.4,2589.3,0.3863]
[1727723896413,0.38629,2589.4,2589.2,3.0933]
[1727723896414,0.3863,2589.3,2589.2,3.47961]
[1727723896821,2.41033456,2589.3,2589.2,7.34201]
[1727723897022,0.38631,2589.2,2589.1,3.1213]
[1727723897222,2.4104783,2589.2,2589.1,3.50763]
[1727723897423,2.4104783,2589.2,2589.1,3.1213]
[1727723897624,2.4104783,2589.2,2589.1,3.50763]
[1727723898029,5.6182783,2589.2,2589.1,2.72]
[1727723898216,5.6182783,2589.2,2588.8,0.3795]
[1727723898217,0.38634,2589.1,2589.0,0.38634]
[1727723898519,1.90476467,2589.1,2589.0,0.38634]
[1727723898721,1.90476467,2589.1,2589.0,3.10634]
[1727723900317,0.38634,2589.1,2589.0,3.10634]
[1727723900519,2.4105083,2589.1,2589.0,3.10634]
[1727723901120,0.38634,2589.1,2589.0,3.10634]
[1727723902624,5.6182883,2589.2,2589.0,2.72]
[1727723902826,5.2319683,2589.2,2589.1,0.38633]
[1727723903024,2.0241683,2589.2,2589.1,4.63323]
[1727723903533,2.0241683,2589.3,2589.2,0.38631]
[1727723903723,2.52345648,2589.4,2589.3,3.1063]
[1727723903724,2.0241683,2589.4,2589.3,3.1063]
[1727723903927,2.0241683,2589.4,2589.3,7.3448]
[1727723904820,2.0241683,2589.4,2589.3,13.3448]
[1727723905121,3.2078,2589.5,2589.4,0.38628]
[1727723905338,3.2078,2589.5,2589.4,4.24788]
[1727723905629,4.72705854,2589.5,2589.4,4.24788]
[1727723905831,1.51925854,2589.5,2589.4,4.24788]
[1727723906237,1.51925854,2589.5,2589.4,5.35188]
[1727723908529,1.01194706,2589.5,2589.4,4.9656]
[1727723908729,1.01194706,2589.5,2589.4,5.35188]
[1727723910427,1.01194706,2589.5,2589.4,1.49028]